fUST/lending_fUST_20240821
["ID","MTS","AMOUNT","RATE_DAILY","PERIOD"]
[335468102,1724244646647,-1370.23,0.00034849,21]
[335468103,1724244646657,-1370.23,0.00034849,21]
[335468104,1724244646666,-1370.23,0.00034849,21]
[335468105,1724244646676,-1370.23,0.00034849,21]
[335468106,1724244646686,-1370.23,0.00034849,21]
[335468107,1724244646696,-1370.23,0.00034849,21]
[335468108,1724244646706,-1370.23,0.00034849,21]
[335468109,1724244646716,-1370.23,0.00034849,21]
[335468110,1724244646726,-500.0,0.00034849,21]
[335468111,1724244646737,-500.0,0.00034849,21]
[335468112,1724244646747,-500.0,0.00034849,21]
[335468113,1724244646757,-500.0,0.00034849,21]
[335468114,1724244646766,-500.0,0.00034849,21]
[335468115,1724244646776,-514.23845675,0.00034849,21]
[335468116,1724244646787,-500.0,0.00034849,21]
[335468117,1724244646797,-500.0,0.00034849,21]
[335468118,1724244646807,-500.0,0.00034849,21]
[335468119,1724244646817,-500.0,0.00034849,21]
[335468120,1724244646827,-500.0,0.00034849,21]
[335468121,1724244646837,-500.0,0.00034849,21]
[335468122,1724244646847,-500.0,0.00034849,21]
[335468123,1724244646856,-211.8,0.00034849,21]
[335468124,1724244646866,-500.0,0.00034849,21]
[335468125,1724244646876,-500.0,0.00034849,21]
[335468126,1724244646885,-500.0,0.00034849,21]
[335468127,1724244646895,-500.0,0.00034849,21]
[335468128,1724244646905,-500.0,0.00034849,21]
[335468129,1724244646915,-500.0,0.00034849,21]
[335468130,1724244646924,-500.0,0.00034849,21]
[335468131,1724244646934,-500.0,0.00034849,21]
[335468132,1724244646945,-500.0,0.00034849,21]
[335468133,1724244646954,-500.0,0.00034849,21]
[335468134,1724244646968,-500.0,0.00034849,21]
[335468135,1724244646978,-241.45,0.00034849,21]
[335468136,1724244646988,-1609.77,0.00034849,21]
[335468137,1724244646998,-1609.77,0.00034849,21]
[335468138,1724244647008,-500.0,0.00034849,21]
[335468139,1724244647019,-1609.77,0.00034849,21]
[335468140,1724244647028,-500.0,0.00034849,21]
[335468141,1724244647039,-500.0,0.00034849,21]
[335468142,1724244647051,-1609.77,0.00034849,21]
[335468143,1724244647062,-500.0,0.00034849,21]
[335468144,1724244647072,-1609.77,0.00034849,21]
[335468145,1724244647082,-500.0,0.00034849,21]
[335468146,1724244647092,-1609.77,0.00034849,21]
[335468147,1724244647102,-500.0,0.00034849,21]
[335468148,1724244647111,-1609.77,0.00034849,21]
[335468149,1724244647121,-500.0,0.00034849,21]
[335468150,1724244647131,-500.0,0.00034849,21]
[335468151,1724244647140,-1609.77,0.00034849,21]
[335468152,1724244647150,-500.0,0.00034849,21]
[335468153,1724244647161,-500.0,0.00034849,21]
[335468154,1724244647171,-1609.77,0.00034849,21]
[335468155,1724244647181,-500.0,0.00034849,21]
[335468156,1724244647190,-500.0,0.00034849,21]
[335468157,1724244647209,-1609.77,0.00034849,21]
[335468158,1724244647220,-500.0,0.00034849,21]
[335468159,1724244647229,-500.0,0.00034849,21]
[335468160,1724244647239,-1609.77,0.00034849,21]
[335468161,1724244647251,-500.0,0.00034849,21]
[335468162,1724244647261,-603.99,0.00034849,21]
[335468163,1724244647271,-1609.77,0.00034849,21]
[335468164,1724244647280,-500.0,0.00034849,21]
[335468165,1724244647290,-1609.77,0.00034849,21]
[335468166,1724244647302,-500.0,0.00034849,21]
[335468167,1724244647313,-1609.77,0.00034849,21]
[335468168,1724244647322,-500.0,0.00034849,21]
[335468169,1724244647332,-500.0,0.00034849,21]
[335468170,1724244647343,-500.0,0.00034849,21]
[335468171,1724244647352,-354.65,0.00034849,21]
[335468172,1724244647363,-500.0,0.00034849,21]
[335468173,1724244647373,-500.0,0.00034849,21]
[335468174,1724244647384,-500.0,0.00034849,21]
[335468175,1724244647395,-500.0,0.00034849,21]
[335468176,1724244647404,-500.0,0.00034849,21]
[335468177,1724244647418,-500.0,0.00034849,21]
[335468178,1724244647429,-500.0,0.00034849,21]
[335468179,1724244647440,-500.0,0.00034849,21]
[335468180,1724244647452,-593.88,0.00034849,21]
[335468181,1724244647462,-500.0,0.00034849,21]
[335468182,1724244647473,-486.17504527,0.00034849,21]
[335468183,1724244647483,-500.0,0.00034849,21]
[335468184,1724244647494,-500.0,0.00034849,21]
[335468185,1724244647504,-509.52204724,0.00034849,21]
[335468186,1724244647515,-500.0,0.00034849,21]
[335468187,1724244647525,-500.0,0.00034849,21]
[335468188,1724244647535,-500.0,0.00034849,21]
[335468189,1724244647546,-500.0,0.00034849,21]
[335468190,1724244647556,-500.0,0.00034849,21]
[335468191,1724244647567,-500.0,0.00034849,21]
[335468192,1724244647578,-500.0,0.00034849,21]
[335468193,1724244647588,-500.0,0.00034849,21]
[335468194,1724244647599,-500.0,0.00034849,21]
[335468195,1724244647609,-500.0,0.00034849,21]
[335468196,1724244647619,-500.0,0.00034849,21]
[335468197,1724244647629,-500.0,0.00034849,21]
[335468198,1724244647639,-500.0,0.00034849,21]
[335468199,1724244647649,-500.0,0.00034849,21]
[335468200,1724244647659,-500.0,0.00034849,21]
[335468201,1724244647669,-500.0,0.00034849,21]
[335468202,1724244647678,-500.0,0.00034849,21]
[335468203,1724244647688,-500.0,0.00034849,21]
[335468204,1724244647698,-500.0,0.00034849,21]
[335468205,1724244647708,-500.0,0.00034849,21]
[335468206,1724244647719,-355.59044218,0.00034849,21]
[335468207,1724244647728,-500.0,0.00034849,21]
[335468208,1724244647739,-500.0,0.00034849,21]
[335468209,1724244647748,-406.64,0.00034849,21]
[335468210,1724244647758,-500.0,0.00034849,21]
[335468211,1724244647768,-500.0,0.00034849,21]
[335468212,1724244647778,-500.0,0.00034849,21]
[335468213,1724244647788,-500.0,0.00034849,21]
[335468214,1724244647798,-500.0,0.00034849,21]
[335468215,1724244647808,-500.0,0.00034849,21]
[335468216,1724244647818,-500.0,0.00034849,21]
[335468217,1724244647828,-500.0,0.00034849,21]
[335468218,1724244647838,-500.0,0.00034849,21]
[335468219,1724244647848,-500.0,0.00034849,21]
[335468220,1724244647858,-500.0,0.00034849,21]
[335468221,1724244647869,-237.0,0.00034849,21]
[335468222,1724244647879,-500.0,0.00034849,21]
[335468223,1724244647889,-500.0,0.00034849,21]
[335468224,1724244647899,-500.0,0.00034849,21]
[335468225,1724244647909,-500.0,0.00034849,21]
[335468226,1724244647919,-500.0,0.00034849,21]
[335468227,1724244647928,-500.0,0.00034849,21]
[335468228,1724244647939,-500.0,0.00034849,21]
[335468229,1724244647960,-447.38,0.00034849,21]
[335468230,1724244647971,-500.0,0.00034849,21]
[335468231,1724244647981,-500.0,0.00034849,21]
[335468232,1724244647991,-500.0,0.00034849,21]
[335468233,1724244648002,-500.0,0.00034849,21]
[335468234,1724244648012,-500.0,0.00034849,21]
[335468235,1724244648022,-500.0,0.00034849,21]
[335468236,1724244648031,-500.0,0.00034849,21]
[335468237,1724244648041,-500.0,0.00034849,21]
[335468238,1724244648051,-500.0,0.00034849,21]
[335468239,1724244648061,-500.0,0.00034849,21]
[335468240,1724244648071,-500.0,0.00034849,21]
[335468241,1724244648081,-500.0,0.00034849,21]
[335468242,1724244648091,-500.0,0.00034849,21]
[335468243,1724244648100,-500.0,0.00034849,21]
[335468244,1724244648110,-500.0,0.00034849,21]
[335468245,1724244648120,-500.0,0.00034849,21]
[335468246,1724244648130,-500.0,0.00034849,21]
[335468247,1724244648140,-280.065298,0.00034849,21]
[335468248,1724244648150,-500.0,0.00034849,21]
[335468249,1724244648160,-1803.2,0.00034849,21]
[335468250,1724244648171,-500.0,0.00034849,21]
[335468251,1724244648180,-500.0,0.00034849,21]
[335468252,1724244648190,-1803.2,0.00034849,21]
[335468253,1724244648201,-500.0,0.00034849,21]
[335468254,1724244648211,-1803.2,0.00034849,21]
[335468255,1724244648224,-500.0,0.00034849,21]
[335468256,1724244648234,-355.16,0.00034849,21]
[335468257,1724244648244,-1803.2,0.00034849,21]
[335468258,1724244648253,-569.84,0.00034849,21]
[335468259,1724244648264,-1803.2,0.00034849,21]
[335468260,1724244648274,-1803.2,0.00034849,21]
[335468261,1724244648285,-1803.2,0.00034849,21]
[335468262,1724244648296,-1803.2,0.00034849,21]
[335468263,1724244648306,-1803.2,0.00034849,21]
[335468264,1724244648315,-1803.2,0.00034849,21]
[335468265,1724244648325,-1803.2,0.00034849,21]
[335468266,1724244648335,-1803.2,0.00034849,21]
[335468267,1724244648345,-500.0,0.00034849,21]
[335468268,1724244648355,-1803.2,0.00034849,21]
[335468269,1724244648365,-500.0,0.00034849,21]
[335468270,1724244648375,-1803.2,0.00034849,21]
[335468271,1724244648386,-500.0,0.00034849,21]
[335468272,1724244648396,-1803.2,0.00034849,21]
[335468273,1724244648406,-500.0,0.00034849,21]
[335468274,1724244648415,-1803.2,0.00034849,21]
[335468275,1724244648425,-500.0,0.00034849,21]
[335468276,1724244648435,-1803.2,0.00034849,21]
[335468277,1724244648444,-500.0,0.00034849,21]
[335468278,1724244648532,-1803.2,0.00034849,21]
[335468279,1724244648543,-500.0,0.00034849,21]
[335468280,1724244648556,-1803.2,0.00034849,21]
[335468281,1724244648567,-500.0,0.00034849,21]
[335468282,1724244648577,-1803.2,0.00034849,21]
[335468283,1724244648587,-500.0,0.00034849,21]
[335468284,1724244648597,-1803.2,0.00034849,21]
[335468285,1724244648607,-1803.2,0.00034849,21]
[335468286,1724244648618,-430.43768281,0.00034849,21]
[335468287,1724244648938,-1111.18149522,0.00024385,2]
[335468288,1724244648949,-380.0,0.00029715,2]
[335468289,1724244648959,-7727.0,0.00031422,2]
[335468290,1724244648968,-150.0,0.00031422,2]
[335468291,1724244648978,-151.0,0.00032,7]
[335468292,1724244648987,-285.86,0.00033999,2]
[335468293,1724244648997,-285.86,0.00033999,2]
[335468294,1724244649006,-285.86,0.00033999,2]
[335468295,1724244649016,-151.0,0.00034,7]
[335468296,1724244649026,-7727.0,0.00034422,2]
[335468297,1724244649037,-69.56231719,0.00034849,21]
[335468298,1724244649047,-1803.2,0.00034849,21]
[335468299,1724244649057,-500.0,0.00034849,21]
[335468300,1724244649067,-1803.34,0.00034849,21]
[335468301,1724244649077,-500.0,0.00034849,21]
[335468302,1724244649087,-500.0,0.00034849,21]
[335468303,1724244649099,-500.0,0.00034849,21]
[335468304,1724244649109,-500.0,0.00034849,21]
[335468305,1724244649120,-500.0,0.00034849,21]
[335468306,1724244649129,-500.0,0.00034849,21]
[335468307,1724244649139,-500.0,0.00034849,21]
[335468308,1724244649151,-500.0,0.00034849,21]
[335468309,1724244649161,-500.0,0.00034849,21]
[335468310,1724244649171,-500.0,0.00034849,21]
[335468311,1724244649180,-500.0,0.00034849,21]
[335468312,1724244649190,-500.0,0.00034849,21]
[335468313,1724244649200,-421.75,0.00034849,21]
[335468314,1724244649210,-500.0,0.00034849,21]
[335468315,1724244649222,-500.0,0.00034849,21]
[335468316,1724244649232,-500.0,0.00034849,21]
[335468317,1724244649241,-500.0,0.00034849,21]
[335468318,1724244649251,-500.0,0.00034849,21]
[335468319,1724244649260,-500.0,0.00034849,21]
[335468320,1724244649270,-500.0,0.00034849,21]
[335468321,1724244649280,-500.0,0.00034849,21]
[335468322,1724244649290,-500.0,0.00034849,21]
[335468323,1724244649301,-500.0,0.00034849,21]
[335468324,1724244649311,-500.0,0.00034849,21]
[335468325,1724244649320,-500.0,0.00034849,21]
[335468326,1724244649330,-500.0,0.00034849,21]
[335468327,1724244649339,-500.0,0.00034849,21]
[335468328,1724244649349,-407.90994654,0.00034849,21]
[335468329,1724244649359,-500.0,0.00034849,21]
[335468330,1724244649369,-500.0,0.00034849,21]
[335468331,1724244649379,-274.06192529,0.00034849,21]
[335468332,1724244649389,-500.0,0.00034849,21]
[335468333,1724244649399,-500.0,0.00034849,21]
[335468334,1724244649409,-616.33,0.00034849,21]
[335468335,1724244649419,-996.83,0.00034849,21]
[335468336,1724244649430,-996.83,0.00034849,21]
[335468337,1724244649440,-996.83,0.00034849,21]
[335468338,1724244649450,-996.83,0.00034849,21]
[335468339,1724244649460,-996.83,0.00034849,21]
[335468340,1724244649470,-996.83,0.00034849,21]
[335468341,1724244649480,-996.83,0.00034849,21]
[335468342,1724244649490,-500.0,0.00034849,21]
[335468343,1724244649500,-996.83,0.00034849,21]
[335468344,1724244649510,-500.0,0.00034849,21]
[335468345,1724244649519,-996.83,0.00034849,21]
[335468346,1724244649528,-500.0,0.00034849,21]
[335468347,1724244649539,-996.83,0.00034849,21]
[335468348,1724244649549,-500.0,0.00034849,21]
[335468349,1724244649559,-996.83,0.00034849,21]
[335468350,1724244649569,-500.0,0.00034849,21]
[335468351,1724244649581,-996.83,0.00034849,21]
[335468352,1724244649591,-996.83,0.00034849,21]
[335468353,1724244649601,-996.83,0.00034849,21]
[335468354,1724244649611,-500.0,0.00034849,21]
[335468355,1724244649621,-996.83,0.00034849,21]
[335468356,1724244649631,-500.0,0.00034849,21]
[335468357,1724244649640,-996.83,0.00034849,21]
[335468358,1724244649650,-500.0,0.00034849,21]
[335468359,1724244649660,-996.83,0.00034849,21]
[335468360,1724244649670,-500.0,0.00034849,21]
[335468361,1724244649680,-996.83,0.00034849,21]
[335468362,1724244649690,-217.3,0.00034849,21]
[335468363,1724244649700,-996.83,0.00034849,21]
[335468364,1724244649709,-996.83,0.00034849,21]
[335468365,1724244649719,-996.83,0.00034849,21]
[335468366,1724244649728,-996.83,0.00034849,21]
[335468367,1724244649737,-996.83,0.00034849,21]
[335468368,1724244649747,-996.93,0.00034849,21]
[335468369,1724244649756,-500.0,0.00034849,21]
[335468370,1724244649766,-500.0,0.00034849,21]
[335468371,1724244649775,-500.0,0.00034849,21]
[335468372,1724244649784,-500.0,0.00034849,21]
[335468373,1724244649794,-500.0,0.00034849,21]
[335468374,1724244649803,-500.0,0.00034849,21]
[335468375,1724244649812,-500.0,0.00034849,21]
[335468376,1724244649822,-500.0,0.00034849,21]
[335468377,1724244649831,-500.0,0.00034849,21]
[335468378,1724244649841,-500.0,0.00034849,21]
[335468379,1724244649853,-500.0,0.00034849,21]
[335468380,1724244649863,-500.0,0.00034849,21]
[335468381,1724244649873,-500.0,0.00034849,21]
[335468382,1724244649883,-500.0,0.00034849,21]
[335468383,1724244649893,-500.0,0.00034849,21]
[335468384,1724244649904,-500.0,0.00034849,21]
[335468385,1724244649913,-500.0,0.00034849,21]
[335468386,1724244649922,-500.0,0.00034849,21]
[335468387,1724244649932,-500.0,0.00034849,21]
[335468388,1724244649941,-500.0,0.00034849,21]
[335468389,1724244649951,-500.0,0.00034849,21]
[335468390,1724244649960,-187.72,0.00034849,21]
[335468391,1724244649969,-533.59625072,0.00034849,21]
[335468392,1724244649978,-500.0,0.00034849,21]
[335468393,1724244649987,-500.0,0.00034849,21]
[335468394,1724244649996,-500.0,0.00034849,21]
[335468395,1724244650007,-500.0,0.00034849,21]
[335468396,1724244650017,-557.7,0.00034849,21]
[335468397,1724244650028,-500.0,0.00034849,21]
[335468398,1724244650037,-500.0,0.00034849,21]
[335468399,1724244650046,-500.0,0.00034849,21]
[335468400,1724244650058,-220.62,0.00034849,21]
[335468401,1724244650067,-500.0,0.00034849,21]
[335468402,1724244650077,-500.0,0.00034849,21]
[335468403,1724244650087,-500.0,0.00034849,21]
[335468404,1724244650097,-500.0,0.00034849,21]
[335468405,1724244650106,-500.0,0.00034849,21]
[335468406,1724244650116,-551.69,0.00034849,21]
[335468407,1724244650125,-500.0,0.00034849,21]
[335468408,1724244650135,-500.0,0.00034849,21]
[335468409,1724244650144,-500.0,0.00034849,21]
[335468410,1724244650154,-500.0,0.00034849,21]
[335468411,1724244650165,-2926.71,0.00034849,21]
[335468412,1724244650175,-500.0,0.00034849,21]
[335468413,1724244650185,-500.0,0.00034849,21]
[335468414,1724244650195,-2926.71,0.00034849,21]
[335468415,1724244650205,-212.79,0.00034849,21]
[335468416,1724244650216,-2926.71,0.00034849,21]
[335468417,1724244650228,-2926.71,0.00034849,21]
[335468418,1724244650238,-2926.71,0.00034849,21]
[335468419,1724244650247,-2926.71,0.00034849,21]
[335468420,1724244650257,-2926.71,0.00034849,21]
[335468421,1724244650267,-2926.71,0.00034849,21]
[335468422,1724244650276,-2926.71,0.00034849,21]
[335468423,1724244650286,-2926.71,0.00034849,21]
[335468424,1724244650296,-2926.71,0.00034849,21]
[335468425,1724244650307,-2926.71,0.00034849,21]
[335468426,1724244650317,-2926.71,0.00034849,21]
[335468427,1724244650326,-2926.71,0.00034849,21]
[335468428,1724244650336,-2926.71,0.00034849,21]
[335468429,1724244650346,-2926.71,0.00034849,21]
[335468430,1724244650356,-2926.71,0.00034849,21]
[335468431,1724244650365,-500.0,0.00034849,21]
[335468432,1724244650375,-2926.71,0.00034849,21]
[335468433,1724244650384,-500.0,0.00034849,21]
[335468434,1724244650393,-500.0,0.00034849,21]
[335468435,1724244650403,-2926.71,0.00034849,21]
[335468436,1724244650412,-500.0,0.00034849,21]
[335468437,1724244650421,-2926.71,0.00034849,21]
[335468438,1724244650432,-2926.71,0.00034849,21]
[335468439,1724244650442,-6839.51040323,0.00034849,21]
[335468486,1724245832282,-269.264648,0.00014247,2]
[335468488,1724245832293,-298.529732,0.00014247,2]
[335468490,1724245832303,-435.15306822,0.00014519,3]
[335468492,1724245832313,-449.7950725,0.0001908,2]
[335468495,1724245832340,-50.2049275,0.0001908,2]
[335468497,1724245832350,-900.0,0.00019234,2]
[335468499,1724245832360,-167.070384,0.00019402,2]
[335468501,1724245832370,-900.0,0.00019422,2]
[335468503,1724245832380,-300.0,0.00019501,2]
[335468506,1724245832390,-89.85349504,0.00019501,2]
[335468508,1724245832402,-210.14650496,0.00019501,2]
[335468510,1724245832413,-7240.5321126,0.00019502,2]
[335468624,1724245838375,-4068.531509,0.00019502,2]
[335468625,1724245838385,-500.0,0.00019608,2]
[335468626,1724245838395,-500.0,0.00019609,2]
[335468627,1724245838404,-2895.0,0.0001975,2]
[335468628,1724245838415,-156.66298998,0.0002,2]
[335468629,1724245838424,-900.0,0.00020576,2]
[335468630,1724245838434,-500.0,0.00020646,2]
[335468631,1724245838444,-269.264648,0.00020707,2]
[335468632,1724245838453,-500.0,0.00020841,2]
[335468633,1724245838463,-900.0,0.00021134,2]
[335468634,1724245838474,-500.0,0.00021783,2]
[335468635,1724245838484,-500.0,0.00021813,2]
[335468636,1724245838494,-342.20916482,0.00021917,2]
[335468637,1724245838503,-2214.04472898,0.00021918,2]
[335468638,1724245838520,-20977.29635452,0.00021918,2]
[335468639,1724245838530,-900.0,0.00022048,2]
[335468640,1724245838539,-900.0,0.00022381,2]
[335468641,1724245838549,-500.0,0.00022716,2]
[335468642,1724245838559,-900.0,0.00022754,2]
[335468643,1724245838568,-900.0,0.0002288,2]
[335468644,1724245838579,-500.0,0.00022948,2]
[335468645,1724245838589,-900.0,0.00023225,2]
[335468646,1724245838599,-900.0,0.00023737,2]
[335468647,1724245838614,-900.0,0.00023827,2]
[335468648,1724245838624,-500.0,0.00023886,2]
[335468649,1724245838634,-500.0,0.0002396,2]
[335468650,1724245838644,-500.0,0.00024128,2]
[335468651,1724245838655,-900.0,0.00024268,2]
[335468652,1724245838664,-160.8404123,0.00024385,2]
[335468653,1724245838674,-500.0,0.00024413,2]
[335468654,1724245838686,-10343.5134042,0.00024577,2]
[335468655,1724245838696,-876.37905276,0.00024657,2]
[335468656,1724245838705,-500.0,0.00024662,2]
[335468657,1724245838715,-198.74200664,0.00024662,2]
[335468658,1724245838724,-309.14971473,0.00024662,2]
[335468659,1724245838734,-882.99597685,0.00024688,2]
[335468660,1724245838743,-435.0,0.00024688,2]
[335468661,1724245838753,-277.68803325,0.00024728,2]
[335468662,1724245838763,-900.0,0.00024819,2]
[335468663,1724245838773,-900.0,0.00024962,2]
[335468664,1724245838783,-154.77557542,0.00025,2]
[335468665,1724245838792,-900.0,0.00025076,2]
[335468666,1724245838803,-500.0,0.0002532,2]
[335468667,1724245838813,-900.0,0.00025537,2]
[335468668,1724245838823,-500.0,0.00025643,2]
[335468669,1724245838838,-900.0,0.00026403,2]
[335468670,1724245838847,-500.0,0.00026458,2]
[335468671,1724245838857,-500.0,0.00026767,2]
[335468672,1724245838866,-495.0,0.00027,2]
[335468673,1724245838877,-269.264648,0.00027167,2]
[335468674,1724245838887,-500.0,0.00027501,2]
[335468675,1724245838898,-2000.0,0.00027529,2]
[335468676,1724245838906,-900.0,0.00027572,2]
[335468677,1724245838915,-47621.47,0.00027589,3]
[335468678,1724245838925,-57145.77,0.00027599,3]
[335468679,1724245838934,-27723.1407533,0.00027619,3]
[335468680,1724245838943,-27723.1407533,0.00027629,3]
[335468681,1724245838953,-386.25865656,0.00027638,2]
[335468682,1724245838963,-500.0,0.00027638,2]
[335468683,1724245838974,-640.39294565,0.00027638,2]
[335468684,1724245838983,-500.0,0.00027638,2]
[335468685,1724245838993,-165.23809944,0.00027638,2]
[335468686,1724245839003,-500.0,0.00027638,2]
[335468687,1724245839012,-500.0,0.00027638,2]
[335468688,1724245839022,-500.0,0.00027638,2]
[335468689,1724245839031,-500.0,0.00027638,2]
[335468690,1724245839041,-500.0,0.00027638,2]
[335468691,1724245839051,-500.0,0.00027638,2]
[335468692,1724245839061,-55446.2815066,0.00027639,3]
[335468693,1724245839071,-495.0,0.00027671,2]
[335468694,1724245839082,-500.0,0.00027692,2]
[335468695,1724245839091,-151.0,0.00027719,2]
[335468696,1724245839101,-501.99527765,0.00028074,2]
[335468697,1724245839113,-900.0,0.00028085,2]
[335468698,1724245839124,-500.0,0.00028467,5]
[335468699,1724245839134,-499.3,0.00028483,2]
[335468700,1724245839144,-151.0,0.00028749,2]
[335468701,1724245839154,-495.0,0.00028767,2]
[335468702,1724245839164,-170.626095,0.00028826,2]
[335468703,1724245839174,-10157.57444704,0.00029,2]
[335468704,1724245839184,-1000.0,0.00029015,5]
[335468705,1724245839193,-500.0,0.00029318,2]
[335468706,1724245839204,-500.0,0.00029594,2]
[335468707,1724245839222,-151.0,0.0002978,2]
[335468708,1724245839234,-27723.1407533,0.00029903,4]
[335468709,1724245839245,-900.0,0.00029913,5]
[335468710,1724245839254,-10000.0,0.0003,21]
[335468711,1724245839266,-178.72751622,0.0003,5]
[335468712,1724245839276,-255.62,0.0003,14]
[335468713,1724245839286,-3771.55,0.0003,14]
[335468714,1724245839296,-500.0,0.00030051,7]
[335468715,1724245839305,-496.0,0.00030205,2]
[335468716,1724245839315,-151.0,0.0003081,3]
[335468717,1724245839326,-900.0,0.00030915,7]
[335468718,1724245839335,-500.0,0.00030988,7]
[335468719,1724245839345,-10000.0,0.00031,23]
[335468720,1724245839354,-500.0,0.0003108,7]
[335468721,1724245839363,-150.0,0.00031422,2]
[335468722,1724245839373,-900.0,0.0003144,7]
[335468723,1724245839383,-615.56643318,0.00031482,7]
[335468724,1724245839394,-738.739676,0.00031695,4]
[335468725,1724245839408,-42801.56045163,0.00031695,4]
[335468728,1724245840545,-1200.1068144,0.00027579,3]
[335468729,1724245840557,-38484.4531856,0.00027579,3]
[335468730,1724245840567,-11905.98137897,0.00031695,4]
[335468731,1724245840576,-150.0,0.00031705,2]
[335468732,1724245840586,-521.0,0.00031705,2]
[335468733,1724245840596,-1415.0,0.00031705,2]
[335468734,1724245840609,-7727.0,0.00031705,2]
[335468735,1724245840619,-151.0,0.0003184,3]
[335468736,1724245840628,-217.35869048,0.00031864,2]
[335468737,1724245840638,-500.0,0.00031922,7]
[335468738,1724245840648,-10000.0,0.00032,25]
[335468739,1724245840658,-495.0,0.00032219,2]
[335468740,1724245840667,-181.9016,0.00032265,2]
[335468741,1724245840677,-168.423271,0.00032265,2]
[335468742,1724245840688,-180.064659,0.00032265,2]
[335468743,1724245840698,-180.049572,0.00032265,2]
[335468744,1724245840707,-181.901599,0.00032265,2]
[335468745,1724245840717,-168.423271,0.00032265,2]
[335468746,1724245840727,-700.0,0.00032427,7]
[335468747,1724245840736,-500.0,0.00032499,7]
[335468748,1724245840746,-255.62,0.000326,14]
[335468749,1724245840756,-153.0,0.00032627,2]
[335468750,1724245840765,-153.0,0.00032627,2]
[335468751,1724245840775,-153.0,0.00032627,2]
[335468752,1724245840785,-153.0,0.00032627,2]
[335468753,1724245840795,-153.0,0.00032627,2]
[335468754,1724245840805,-900.0,0.00032661,7]
[335468755,1724245840814,-217.35869048,0.00032779,2]
[335468756,1724245840823,-900.0,0.00032795,7]
[335468757,1724245840834,-151.0,0.0003287,4]
[335468758,1724245840845,-151.0,0.0003287,4]
[335468759,1724245840855,-1000.0,0.00032876,2]
[335468760,1724245840865,-6018.77,0.00032876,21]
[335468761,1724245840875,-3771.55,0.000329,14]
[335468762,1724245840885,-6018.77,0.00032931,21]
[335468763,1724245840896,-12025.96066421,0.00032976,4]
[335468764,1724245840924,-353.38562104,0.00032976,4]
[335468849,1724246668292,269.16,0.00014,2]
[335468850,1724246743931,191.88165941,0.00014,2]
[335468851,1724246744270,154.79103211,0.00014,2]
[335468852,1724246760886,16318.75386369,0.00014,2]
[335468919,1724247032659,-243.545889,0.00014247,2]
[335468921,1724247032673,-5034.16217012,0.00019095,2]
[335468955,1724247038514,-19855.83782988,0.00019095,2]
[335468956,1724247038525,-500.0,0.00019526,2]
[335468957,1724247038535,-500.0,0.00019858,2]
[335468958,1724247038546,-3940.43394545,0.000199,2]
[335468959,1724247038559,-388.35838211,0.00019999,2]